bitfinex/quotes_BTCUSD_20240905
["timestamp","ask_amount","ask_price","bid_price","bid_amount"]
[1725543827718,2.54124923,57160.0,57159.0,0.00163]
[1725543828512,2.90114423,57160.0,57159.0,0.00163]
[1725543828800,2.90114423,57160.0,57153.0,0.00164]
[1725543828801,2.46027123,57154.0,57153.0,0.00164]
[1725543829066,2.83320223,57154.0,57153.0,0.00164]
[1725543829295,3.13015345,57154.0,57153.0,0.00164]
[1725543829541,8.24586763,57154.0,57153.0,0.00164]
[1725543829770,1.69329923,57142.0,57141.0,0.52650515]
[1725543830006,3.95337523,57142.0,57141.0,0.52650515]
[1725543830257,0.175027,57134.0,57133.0,0.00162]
[1725543830487,0.350013,57141.0,57133.0,0.00162]
[1725543830742,0.1,57140.0,57133.0,0.14342]
[1725543830973,0.1,57142.0,57136.0,0.17502]
[1725543831211,0.613268,57148.0,57133.0,0.14342]
[1725543831212,0.1154,57148.0,57141.0,0.002]
[1725543831443,0.1,57147.0,57141.0,0.002]
[1725543831675,0.449976,57147.0,57141.0,0.002]
[1725543831899,0.1,57147.0,57141.0,0.002]
[1725543832156,0.449976,57147.0,57141.0,0.002]
[1725543832425,0.174994,57145.0,57139.0,0.002]
[1725543832650,0.174996,57144.0,57139.0,0.002]
[1725543832880,0.1,57147.0,57139.0,0.003628]
[1725543833110,0.1,57147.0,57135.0,0.350047]
[1725543833111,0.1,57147.0,57135.0,0.348675]
[1725543833340,0.349981,57146.0,57139.0,0.175011]
[1725543833562,0.174991,57146.0,57139.0,0.17501]
[1725543833817,0.1,57147.0,57133.0,0.14342]
[1725543834066,0.525117,57130.0,57107.0,0.14712]
[1725543834291,1.57885523,57130.0,57111.0,0.52650515]
[1725543834531,3.02288223,57130.0,57111.0,0.87669815]
[1725543834760,0.648117,57130.0,57114.0,0.35017]
[1725543835039,0.998195,57130.0,57114.0,0.35017]
[1725543835279,0.998195,57130.0,57117.0,0.175077]
[1725543835519,1.00169923,57130.0,57116.0,0.175081]
[1725543835742,1.35177723,57130.0,57116.0,0.175081]
[1725543835967,2.13438323,57130.0,57114.0,0.175087]
[1725543836188,1.78430523,57130.0,57115.0,0.175084]
[1725543836432,1.73753423,57130.0,57111.0,0.87669815]
[1725543836655,2.08761223,57130.0,57112.0,0.52814515]
[1725543837779,2.44769023,57130.0,57112.0,0.52814515]
[1725543838251,2.43769023,57130.0,57112.0,0.52814515]
[1725543838714,2.44769023,57130.0,57112.0,0.52814515]
[1725543839917,3.24742849,57130.0,57112.0,0.00164]
[1725543840145,1.30275523,57119.0,57112.0,0.00164]
[1725543840379,1.479611,57119.0,57112.0,0.00164]
[1725543840626,0.123,57129.0,57112.0,0.00164]
[1725543840627,0.1167,57126.0,57112.0,0.00164]
[1725543840854,0.1374,57133.0,57119.0,0.350144]
[1725543841093,0.1167,57134.0,57123.0,0.350117]
[1725543841334,0.350012,57141.0,57129.0,0.350083]
[1725543841588,0.349973,57148.0,57124.0,0.606614]
[1725543841589,0.174973,57152.0,57130.0,0.35708301]
[1725543841826,0.1225,57154.0,57124.0,0.1177]
[1725543841827,0.52650515,57151.0,57134.0,0.350049]
[1725543842063,0.35358223,57155.0,57131.0,0.1532]
[1725543842064,0.349924,57156.0,57143.0,0.349996]
[1725543842296,0.349924,57156.0,57144.0,0.1532]
[1725543842532,0.182485,57155.0,57144.0,0.1532]
[1725543842831,0.182485,57155.0,57132.0,0.1175]
[1725543842832,0.35358223,57146.0,57141.0,0.175003]
[1725543843041,0.35358223,57146.0,57137.0,0.1532]
[1725543843042,0.175004,57142.0,57137.0,0.1532]
[1725543843267,0.175003,57142.0,57137.0,0.1532]
[1725543843494,0.174991,57146.0,57140.0,0.175008]
[1725543843714,0.174997,57144.0,57137.0,0.1532]
[1725543843934,0.349977,57147.0,57138.0,0.350029]
[1725543844182,0.174997,57144.0,57139.0,0.175011]
[1725543844409,0.349965,57149.0,57138.0,0.350029]
[1725543844637,0.349933,57154.0,57137.0,0.1532]
[1725543844862,0.35358223,57151.0,57141.0,0.00163]
[1725543845102,0.175001,57143.0,57141.0,0.00163]
[1725543845641,0.349981,57146.0,57141.0,0.00163]
[1725543845642,0.175002,57142.0,57141.0,0.00163]
[1725543846136,0.35358223,57151.0,57141.0,0.00163]
[1725543846376,0.174991,57146.0,57141.0,0.176633]
[1725543846860,0.174992,57146.0,57141.0,0.00163]
[1725543847109,0.174984,57148.0,57141.0,0.00163]
[1725543847330,0.023,57150.0,57141.0,0.00163]
[1725543847331,0.1,57147.0,57143.0,0.174999]
[1725543847551,0.1,57147.0,57144.0,0.174995]
[1725543847770,0.1,57147.0,57143.0,0.174998]
[1725543848227,0.174973,57152.0,57147.0,0.174985]
[1725543848458,0.174973,57152.0,57141.0,0.00163]
[1725543848459,0.1,57152.0,57141.0,0.351639]
[1725543848692,0.174982,57149.0,57144.0,0.174995]
[1725543848923,0.1205,57164.0,57150.0,0.34995]
[1725543849156,0.070169,57161.0,57150.0,0.349955]
[1725543849419,0.174945,57161.0,57156.0,0.174957]
[1725543849663,0.1445,57167.0,57145.0,0.255]
[1725543849890,0.21981,57166.0,57149.0,0.34996]
[1725543850120,0.08016,57168.0,57156.0,0.174958]
[1725543850370,0.17493,57166.0,57159.0,0.349895]
[1725543850595,0.174933,57165.0,57161.0,0.174942]
[1725543850836,0.174912,57172.0,57164.0,0.349869]
[1725543851090,0.1134,57177.0,57167.0,0.174924]
[1725543851316,0.1134,57177.0,57164.0,0.349868]
[1725543851317,0.349815,57173.0,57164.0,0.349868]
[1725543851547,0.17492,57169.0,57164.0,0.174934]
[1725543852058,0.17492,57169.0,57165.0,0.17493]
[1725543852302,0.1134,57177.0,57160.0,0.1439]
[1725543852547,0.1134,57177.0,57138.0,0.01]
[1725543852548,0.174992,57146.0,57142.0,0.1439]
[1725543852787,0.35358223,57164.0,57145.0,0.52650515]
[1725543853024,0.174984,57148.0,57143.0,0.174998]
[1725543853265,0.349938,57153.0,57142.0,0.1439]
[1725543853266,0.17499,57146.0,57142.0,0.1439]
[1725543853492,0.349964,57149.0,57142.0,0.1439]
[1725543853715,0.34995,57152.0,57142.0,0.1439]
[1725543853716,0.174999,57143.0,57142.0,0.1439]
[1725543854176,0.524998,57143.0,57142.0,0.1439]
[1725543854426,0.174999,57143.0,57142.0,0.1439]
[1725543854676,0.174999,57143.0,57141.0,0.00163]
[1725543854677,0.175002,57142.0,57141.0,0.00163]
[1725543854941,0.174997,57144.0,57141.0,0.00163]
[1725543855195,0.175001,57143.0,57141.0,0.00163]
[1725543855642,0.175002,57142.0,57141.0,0.00163]
[1725543856135,1.225017,57142.0,57141.0,0.00163]
[1725543856369,1.542639,57142.0,57141.0,0.00163]
[1725543856593,1.880922,57142.0,57141.0,0.00163]
[1725543857299,1.348017,57142.0,57141.0,0.00163]
[1725543857530,0.998012,57142.0,57141.0,0.00163]
[1725543857770,1.63920459,57142.0,57141.0,0.00163]
[1725543858896,1.4544,57142.0,57141.0,0.00163]
[1725543859118,1.348017,57142.0,57141.0,0.00163]
[1725543859364,0.1,57142.0,57141.0,0.00163]
[1725543859620,0.1,57142.0,57141.0,0.15143]
[1725543859621,0.175002,57142.0,57141.0,0.15143]
[1725543860084,0.275002,57142.0,57141.0,0.15143]
[1725543860303,0.625007,57142.0,57141.0,0.15143]
[1725543860530,0.975012,57142.0,57141.0,0.15143]
[1725543860760,0.975012,57142.0,57141.0,0.00163]
[1725543861007,1.698022,57142.0,57141.0,0.00163]
[1725543861244,1.348017,57142.0,57141.0,0.00163]
[1725543861706,0.625007,57142.0,57141.0,0.00163]
[1725543861942,0.648007,57142.0,57141.0,0.00163]
[1725543862220,1.348017,57142.0,57141.0,0.00163]
[1725543863354,1.698022,57142.0,57141.0,0.00163]
[1725543863629,2.66635518,57142.0,57141.0,1.1e-07]
[1725543863868,2.66635518,57142.0,57119.0,0.001632]
[1725543863869,0.87535,57120.0,57119.0,0.001632]
[1725543864096,1.22549,57120.0,57119.0,0.001632]
[1725543864559,1.24849,57120.0,57119.0,0.001632]
[1725543864859,1.34849,57120.0,57119.0,0.001632]
[1725543866568,0.97535,57120.0,57119.0,0.001632]
[1725543866805,0.62521,57120.0,57119.0,0.001632]
[1725543867699,0.27507,57120.0,57119.0,0.001632]
[1725543867939,0.62521,57120.0,57119.0,0.001632]
[1725543868170,0.1,57120.0,57119.0,0.001632]
[1725543868392,0.27507,57120.0,57119.0,0.001632]
[1725543868614,0.97535,57120.0,57119.0,0.001632]
[1725543868839,0.99835,57120.0,57119.0,0.001632]
[1725543869310,0.1144,57148.0,57130.0,0.1465]
[1725543869553,0.52650515,57144.0,57131.0,0.350071]
[1725543869774,0.174997,57144.0,57138.0,0.175013]
[1725543870014,0.000816,57146.0,57130.0,0.1465]
[1725543870015,0.000816,57146.0,57135.0,0.473246]
[1725543870239,0.000816,57146.0,57135.0,0.1232]
[1725543870240,0.000816,57143.0,57135.0,0.1232]
[1725543870470,0.175006,57141.0,57135.0,0.298222]
[1725543870707,0.000816,57143.0,57136.0,0.350039]
[1725543870955,0.000816,57143.0,57135.0,0.1232]
[1725543871446,0.175007,57141.0,57135.0,0.1232]
[1725543871666,0.000816,57143.0,57135.0,0.1232]
[1725543871889,0.175816,57143.0,57138.0,0.175014]
[1725543872113,0.175005,57141.0,57136.0,0.14]
[1725543872622,0.175017,57137.0,57136.0,0.14]
[1725543872865,0.350024,57139.0,57130.0,0.503176]
[1725543873077,0.023,57140.0,57130.0,0.503177]
[1725543873298,0.350028,57139.0,57132.0,0.175032]
[1725543873546,0.023,57141.0,57130.0,0.1531]
[1725543873781,0.000816,57143.0,57124.0,0.350115]
[1725543873782,0.175034,57132.0,57124.0,0.1531]
[1725543874010,0.175054,57125.0,57124.0,0.1531]
[1725543874246,0.1,57139.0,57125.0,0.350108]
[1725543874468,0.023,57138.0,57126.0,0.175049]
[1725543874688,0.17504,57130.0,57126.0,0.175049]
[1725543874911,0.023,57138.0,57119.0,0.351777]
[1725543874912,0.350055,57134.0,57119.0,0.494477]
[1725543875167,0.175049,57127.0,57119.0,0.494477]
[1725543875410,0.023,57138.0,57124.0,0.175056]
[1725543875411,0.175044,57129.0,57124.0,0.175056]
[1725543875658,0.023,57138.0,57119.0,0.144332]
[1725543875872,0.17507,57120.0,57119.0,0.144332]
[1725543876129,0.52521,57120.0,57119.0,0.001632]
[1725543878214,1.34849,57120.0,57119.0,0.001632]
[1725543878882,1.836754,57120.0,57119.0,0.001632]
[1725543879113,1.93085108,57120.0,57119.0,0.001632]
[1725543879340,1.836754,57120.0,57119.0,0.001632]
[1725543879804,1.575657,57119.0,57118.0,2.2e-07]
[1725543880025,1.698657,57119.0,57118.0,2.2e-07]
[1725543880268,2.15268502,57119.0,57118.0,2.2e-07]
[1725543880500,2.32518502,57119.0,57118.0,2.2e-07]
[1725543880735,2.36655401,57119.0,57118.0,2.2e-07]
[1725543880949,2.43778502,57119.0,57118.0,2.2e-07]
[1725543881172,2.47915401,57119.0,57118.0,2.2e-07]
[1725543881414,2.48115401,57119.0,57118.0,2.2e-07]
[1725543881663,2.78993102,57119.0,57118.0,2.2e-07]
[1725543881921,3.07268323,57113.0,57112.0,0.00164]
[1725543882161,7.59769125,57113.0,57112.0,0.00164]
[1725543882381,8.64800973,57113.0,57112.0,0.00164]
[1725543882623,8.69715484,57113.0,57112.0,0.00164]
[1725543882857,7.14541724,57113.0,57112.0,0.00164]
[1725543883089,7.45159225,57113.0,57112.0,0.00164]
[1725543883348,7.25543425,57113.0,57112.0,0.00164]
[1725543883589,7.29680324,57113.0,57112.0,0.00164]
[1725543884500,7.29480324,57113.0,57112.0,0.00164]
[1725543884724,7.25343425,57113.0,57112.0,0.00164]
[1725543884943,7.16155223,57113.0,57112.0,0.00164]
[1725543885226,7.25558719,57113.0,57112.0,0.00164]
[1725543885464,7.29695618,57113.0,57112.0,0.00164]
[1725543885963,7.25558719,57113.0,57112.0,0.00164]
[1725543886179,7.30771291,57113.0,57112.0,0.00164]
[1725543886399,2.308384,57108.0,57107.0,0.00162]
[1725543886645,8.09119119,57108.0,57107.0,0.00162]
[1725543887802,8.79119119,57108.0,57107.0,0.00162]
[1725543888018,8.81687359,57108.0,57107.0,0.00162]
[1725543888499,0.207128,57101.0,57100.0,0.95923893]
[1725543888712,6.20646496,57101.0,57100.0,0.65528341]
[1725543888940,7.35723296,57101.0,57100.0,0.65528341]
[1725543889174,7.263198,57101.0,57100.0,0.65528341]
[1725543889614,7.286198,57101.0,57100.0,0.65528341]
[1725543889847,7.986198,57101.0,57100.0,0.37329623]
[1725543890068,7.986198,57101.0,57081.0,0.00162]
[1725543890069,2.458644,57094.0,57093.0,0.429938]
[1725543890320,8.01171623,57094.0,57093.0,0.37764555]
[1725543890551,7.91627923,57094.0,57093.0,0.37764555]
[1725543890768,7.16286823,57094.0,57093.0,0.37764555]
[1725543890993,6.81256923,57094.0,57093.0,0.37764555]
[1725543891457,5.443589,57094.0,57093.0,0.37764555]
[1725543891684,1.95295,57094.0,57093.0,0.37764555]
[1725543891911,0.7,57094.0,57093.0,0.37764555]
[1725543892596,1.025448,57094.0,57093.0,0.37764555]
[1725543892893,1.84888,57094.0,57093.0,0.37764555]
[1725543893115,1.658311,57094.0,57093.0,0.37764555]
[1725543893580,1.758311,57094.0,57093.0,0.37764555]
[1725543893802,1.781311,57094.0,57093.0,0.37764555]
[1725543894017,2.13161,57094.0,57093.0,0.37764555]
[1725543895166,2.15918078,57094.0,57093.0,0.37764555]
[1725543896123,2.19118078,57094.0,57093.0,0.37764555]
[1725543896355,2.80307978,57094.0,57093.0,0.37927755]
[1725543896778,3.15337878,57094.0,57093.0,0.37927755]
[1725543898203,3.85337878,57094.0,57093.0,0.37927755]
[1725543898670,4.03827878,57094.0,57093.0,0.37927755]
[1725543898892,4.07964777,57094.0,57093.0,0.37927755]
[1725543899122,4.42994677,57094.0,57093.0,0.37927755]
[1725543899353,4.42994677,57094.0,57083.0,0.00162]
[1725543899354,2.72628,57084.0,57083.0,0.00162]
[1725543899602,3.53022223,57084.0,57083.0,0.00162]
[1725543899857,3.57159122,57084.0,57083.0,0.00162]
[1725543900111,3.57159122,57084.0,57056.0,0.1494]
[1725543900112,0.5,57065.0,57056.0,0.1494]
[1725543900381,0.5,57065.0,57051.0,0.151]
[1725543900382,1.22981923,57062.0,57051.0,0.151]
[1725543900642,1.22981923,57062.0,57046.0,0.151]
[1725543900643,6.259538,57062.0,57046.0,0.151]
[1725543900881,0.275247,57062.0,57061.0,0.15264]
[1725543901116,0.5,57086.0,57075.0,0.151]
[1725543901389,1.255051,57085.0,57075.0,0.151]
[1725543901622,0.350363,57084.0,57075.0,0.151]
[1725543901885,0.7,57090.0,57077.0,0.1492]
[1725543902107,0.5,57094.0,57077.0,0.1492]
[1725543902108,0.350316,57092.0,57077.0,0.1492]
[1725543902366,0.5,57094.0,57079.0,0.175194]
[1725543902367,0.350326,57090.0,57079.0,0.175194]
[1725543902624,0.13085,57089.0,57077.0,0.1492]
[1725543902860,0.5,57094.0,57078.0,0.152]
[1725543903127,0.350335,57089.0,57078.0,0.152]
[1725543903621,0.01,57099.0,57078.0,0.152]
[1725543903622,0.875977,57079.0,57078.0,0.152]
[1725543903837,0.175195,57079.0,57078.0,0.152]
[1725543904324,0.525586,57079.0,57078.0,0.152]
[1725543904556,0.175195,57079.0,57078.0,0.152]
[1725543904776,0.67510393,57079.0,57078.0,0.152]
[1725543905007,1.29080493,57079.0,57078.0,0.152]
[1725543905233,0.1,57079.0,57078.0,0.152]
[1725543905457,0.625586,57079.0,57078.0,0.152]
[1725543905702,0.298195,57079.0,57078.0,0.152]
[1725543905924,0.1,57079.0,57078.0,0.152]
[1725543906166,0.275193,57080.0,57078.0,0.152]
[1725543906387,0.1,57080.0,57078.0,0.152]
[1725543906625,0.350352,57086.0,57078.0,0.152]
[1725543906626,0.1,57081.0,57078.0,0.152]
[1725543906845,0.350363,57084.0,57078.0,0.152]
[1725543907099,0.01,57094.0,57078.0,0.152]
[1725543907100,0.350303,57094.0,57078.0,0.152]
[1725543907331,0.070252,57098.0,57079.0,0.127]
[1725543907332,0.359168,57093.0,57079.0,0.127]
[1725543907552,0.5,57095.0,57079.0,0.127]
[1725543907798,0.070252,57098.0,57085.0,0.350354]
[1725543908040,0.51,57105.0,57090.0,0.1636]
[1725543908041,0.00304534,57103.0,57090.0,0.1636]
[1725543908288,0.070243,57103.0,57096.0,0.1588]
[1725543908520,0.500816,57113.0,57096.0,0.1588]
[1725543908521,0.50386007,57113.0,57096.0,0.1588]
[1725543908755,0.175106,57108.0,57101.0,0.175127]
[1725543908997,0.175106,57108.0,57103.0,0.1588]
[1725543908998,0.175108,57108.0,57103.0,0.1588]
[1725543909234,0.50386007,57113.0,57103.0,0.1588]
[1725543909235,0.000816,57113.0,57103.0,0.51238223]
[1725543909486,0.000816,57113.0,57112.0,0.2819]
[1725543909487,0.175907,57113.0,57112.0,0.2819]
[1725543909725,0.000816,57113.0,57112.0,0.2819]
[1725543909962,0.000816,57113.0,57112.0,0.456994]
[1725543910207,0.000816,57113.0,57112.0,1.507561]
[1725543910431,0.350012,57141.0,57132.0,0.1557]
[1725543910710,0.52650515,57138.0,57132.0,0.1557]
[1725543910947,0.000816,57143.0,57132.0,0.1557]
[1725543911431,0.000816,57143.0,57142.0,0.463302]
[1725543911692,0.000816,57143.0,57142.0,0.813307]
[1725543911965,0.000816,57146.0,57142.0,0.875012]
[1725543912175,0.000816,57146.0,57145.0,1.04216123]
[1725543912403,0.000816,57146.0,57145.0,1.39214723]
[1725543912624,0.000816,57146.0,57145.0,1.04216123]
[1725543912851,0.088416,57146.0,57145.0,1.04216123]
[1725543913085,0.088416,57146.0,57145.0,0.1636]
[1725543913353,0.088416,57146.0,57145.0,0.338593]
[1725543913577,0.088416,57146.0,57145.0,0.688579]
[1725543913803,0.088416,57146.0,57145.0,0.338593]
[1725543914048,0.088416,57146.0,57145.0,1.04216123]
[1725543914287,0.00082,57161.0,57160.0,0.174947]
[1725543914528,0.00082,57161.0,57160.0,0.680042]
[1725543914740,0.00082,57161.0,57160.0,1.029937]
[1725543914967,0.00082,57161.0,57160.0,1.379832]
[1725543915210,0.000815,57176.0,57163.0,0.1552]
[1725543915443,0.349697,57193.0,57182.0,0.174878]
[1725543915444,0.070139,57188.0,57182.0,0.174878]
[1725543915691,0.070139,57188.0,57180.0,0.2876]
[1725543915692,0.349664,57198.0,57180.0,0.637371]
[1725543915962,0.5,57200.0,57181.0,0.1625]
[1725543915963,0.174841,57195.0,57181.0,0.1625]
[1725543916206,0.5,57200.0,57181.0,0.1625]
[1725543916431,0.349705,57191.0,57181.0,0.1625]
[1725543916688,0.349693,57193.0,57181.0,0.1625]
[1725543916933,0.85358223,57200.0,57181.0,0.1625]
[1725543916934,0.52464,57182.0,57181.0,0.1625]
[1725543917182,0.85358223,57200.0,57181.0,0.1625]
[1725543917183,0.5,57193.0,57181.0,0.1625]
[1725543917419,0.349736,57186.0,57181.0,0.1625]
[1725543917653,0.52464,57182.0,57181.0,0.1625]
[1725543917906,0.174917,57170.0,57169.0,0.52650515]
[1725543918150,0.023,57182.0,57167.0,0.1248]
[1725543918443,0.023,57182.0,57168.0,0.1511]
[1725543918444,0.349792,57177.0,57168.0,0.1511]
[1725543918678,0.349792,57177.0,57158.0,0.349902]
[1725543918679,0.524823,57162.0,57161.0,0.1511]
[1725543918917,0.524823,57162.0,57152.0,0.52650515]
[1725543918918,0.174968,57154.0,57153.0,0.52650515]
[1725543919155,0.174968,57154.0,57152.0,0.1511]
[1725543919156,0.174968,57153.0,57152.0,0.1511]
[1725543919400,0.874842,57153.0,57152.0,0.1511]
[1725543922308,0.350137,57121.0,57111.0,0.2764]
[1725543922523,0.023,57124.0,57112.0,0.175092]
[1725543922752,0.350126,57123.0,57111.0,0.2764]
[1725543922985,0.175075,57119.0,57113.0,0.17509]
[1725543923253,0.175075,57119.0,57111.0,0.2764]
[1725543923254,0.1,57126.0,57115.0,0.35358223]
[1725543923519,0.350015,57141.0,57122.0,0.35358223]
[1725543923740,0.35358223,57138.0,57116.0,0.2803]
[1725543923971,0.35358223,57127.0,57116.0,0.151]
[1725543924207,0.1582,57133.0,57117.0,0.52650515]
[1725543924432,0.350042,57136.0,57118.0,0.00350141]
[1725543924643,0.302631,57135.0,57122.0,0.350122]
[1725543924910,0.6232,57147.0,57124.0,0.1202]
[1725543924911,0.1232,57147.0,57124.0,0.1202]
[1725543925144,0.174997,57144.0,57137.0,0.175015]
[1725543925354,0.000816,57153.0,57134.0,0.350048]
[1725543925599,0.000816,57153.0,57141.0,0.350011]
[1725543925600,0.174982,57149.0,57141.0,0.350011]
[1725543925820,0.000816,57153.0,57130.0,0.1528]
[1725543925821,0.174999,57144.0,57130.0,0.1528]
[1725543926080,0.175786,57153.0,57133.0,0.35358223]
[1725543926314,0.35439823,57153.0,57134.0,0.2823]
[1725543926531,0.175017,57138.0,57134.0,0.2823]
[1725543926767,0.525072,57135.0,57134.0,0.1624]
[1725543926991,0.920527,57135.0,57120.0,0.1576]
[1725543927211,0.47518223,57140.0,57120.0,0.1576]
[1725543927212,0.1216,57140.0,57120.0,0.1576]
[1725543927439,0.350033,57138.0,57120.0,0.1576]
[1725543927662,0.509136,57139.0,57120.0,0.1576]
[1725543927663,0.350106,57126.0,57120.0,0.1576]
[1725543927906,0.85358223,57135.0,57120.0,0.1576]
[1725543928146,0.175066,57121.0,57120.0,0.1576]
[1725543928368,0.85358223,57135.0,57120.0,0.1576]
[1725543928369,0.17506,57123.0,57120.0,0.1576]
[1725543928900,0.175066,57121.0,57120.0,0.1576]
[1725543929118,0.47518223,57140.0,57120.0,0.332668]
[1725543929352,0.175059,57124.0,57120.0,0.1576]
[1725543929602,0.175066,57121.0,57120.0,0.1576]
[1725543929851,0.525199,57121.0,57120.0,0.1576]
[1725543930103,0.175066,57121.0,57120.0,0.1576]
[1725543930353,0.47658223,57139.0,57120.0,0.1576]
[1725543930610,0.350069,57132.0,57120.0,0.1576]
[1725543930846,0.175066,57121.0,57120.0,0.1576]
[1725543931097,0.350207,57109.0,57102.0,0.1252]
[1725543931318,0.35358223,57124.0,57102.0,0.1252]
[1725543931319,0.350197,57111.0,57102.0,0.1252]
[1725543931552,0.350226,57106.0,57103.0,0.1492]
[1725543931806,0.525357,57104.0,57103.0,0.1492]
[1725543932037,0.5,57115.0,57095.0,0.1266]
[1725543932038,0.35358223,57109.0,57095.0,0.1266]
[1725543932297,0.350263,57100.0,57090.0,0.125]
[1725543932711,0.350268,57100.0,57091.0,0.1635]
[1725543932717,0.350232,57105.0,57092.0,0.175155]
[1725543932955,0.35358223,57109.0,57091.0,0.1635]
[1725543933234,0.01425785,57110.0,57091.0,0.1635]
[1725543933235,0.01425785,57110.0,57102.0,0.00163]
[1725543933472,0.01425785,57110.0,57104.0,0.1509]
[1725543933756,0.175107,57108.0,57105.0,0.1231]
[1725543933984,0.01425785,57110.0,57109.0,0.175103]
[1725543934217,0.01425785,57110.0,57109.0,0.52531]
[1725543934447,0.01425785,57110.0,57109.0,0.875517]
[1725543934701,0.481863,57133.0,57105.0,0.1231]
[1725543934925,0.175084,57116.0,57110.0,0.175099]
[1725543935166,1.641271,57132.0,57105.0,0.1231]
[1725543935167,0.35358223,57126.0,57105.0,0.1231]
[1725543935400,0.00075336,57115.0,57109.0,0.35358223]
[1725543935632,0.350132,57122.0,57110.0,0.350197]
[1725543935857,0.175089,57114.0,57107.0,0.350215]
[1725543936098,0.175089,57114.0,57105.0,0.1231]
[1725543936099,0.01339716,57121.0,57111.0,0.175096]
[1725543936351,0.070207,57132.0,57111.0,0.175095]
[1725543936352,0.350159,57117.0,57111.0,0.175095]
[1725543936590,0.70670719,57131.0,57105.0,0.1231]
[1725543936591,0.01344033,57116.0,57105.0,0.1231]
[1725543936878,0.36360933,57116.0,57105.0,0.1231]
[1725543937120,0.350108,57126.0,57105.0,0.1231]
[1725543937121,0.175112,57106.0,57105.0,0.1231]
[1725543937351,0.525348,57105.0,57104.0,0.1509]
[1725543937601,0.88902639,57105.0,57104.0,0.1509]
[1725543937854,0.88902639,57105.0,57102.0,0.00163]
[1725543937855,0.175122,57103.0,57102.0,0.00163]
[1725543938122,0.525475,57091.0,57090.0,0.65150515]
[1725543938398,0.5,57113.0,57090.0,0.65150515]
[1725543938651,0.5,57113.0,57090.0,0.125]
[1725543938652,0.525475,57091.0,57090.0,0.125]
[1725543938934,0.350267,57100.0,57090.0,0.125]
[1725543939166,0.00051882,57091.0,57090.0,1.02081]
[1725543939422,0.00051882,57091.0,57090.0,0.670486]
[1725543939661,0.00051882,57091.0,57090.0,1.16981]
[1725543939897,0.00051882,57091.0,57090.0,1.992058]
[1725543940129,0.649,57127.0,57103.0,0.02]
[1725543940130,0.350162,57117.0,57103.0,0.02]
[1725543940361,0.649,57127.0,57103.0,0.02]
[1725543940362,0.350196,57111.0,57103.0,0.02]
[1725543940617,0.1,57110.0,57103.0,0.02]
[1725543940850,0.350238,57104.0,57101.0,0.01]
[1725543941105,0.01172885,57114.0,57097.0,0.149]
[1725543941106,0.525411,57098.0,57097.0,0.149]
[1725543941617,0.01172886,57103.0,57098.0,0.01]
[1725543941859,0.01172886,57103.0,57097.0,0.149]
[1725543941860,0.525411,57098.0,57097.0,0.149]
[1725543942371,0.525411,57098.0,57090.0,0.125]
[1725543942372,0.875792,57091.0,57090.0,0.125]
[1725543942604,1.00444213,57091.0,57090.0,0.125]
[1725543942839,1.00497949,57091.0,57090.0,0.125]
[1725543943101,1.91566749,57091.0,57090.0,0.125]
[1725543943330,1.56535049,57091.0,57090.0,0.125]
[1725543944067,1.20267849,57091.0,57090.0,0.125]
[1725543944516,1.15799549,57091.0,57090.0,0.125]
[1725543944740,0.10053736,57091.0,57090.0,0.125]
[1725543944966,0.52601236,57091.0,57090.0,0.125]
[1725543945203,0.99932936,57091.0,57090.0,0.125]
[1725543945447,1.63760536,57091.0,57090.0,0.125]
[1725543945670,1.28728836,57091.0,57090.0,0.125]
[1725543945887,1.17150936,57091.0,57090.0,0.12663]
[1725543946336,0.64901236,57091.0,57090.0,0.12663]
[1725543946598,0.00053736,57091.0,57090.0,0.40593]
[1725543946809,0.17569536,57091.0,57090.0,0.42593]
[1725543947022,0.35029,57096.0,57090.0,0.12663]
[1725543947244,0.00964903,57091.0,57090.0,0.12663]
[1725543947464,0.18480703,57091.0,57090.0,0.12663]
[1725543947693,1.67824303,57091.0,57090.0,0.12663]
[1725543947990,2.74457503,57091.0,57090.0,0.12663]
[1725543948205,0.90844103,57091.0,57090.0,0.12663]
[1725543948432,0.20780703,57091.0,57090.0,0.12663]
[1725543948654,1.00844103,57091.0,57090.0,0.12663]
[1725543948878,3.63799303,57091.0,57090.0,0.12663]
[1725543949111,2.06415603,57091.0,57090.0,0.12663]
[1725543949341,3.08851596,57091.0,57090.0,0.12663]
[1725543949561,2.71557303,57091.0,57090.0,0.12663]
[1725543949785,3.06589003,57091.0,57090.0,0.12663]
[1725543950006,0.876115,57070.0,57069.0,0.52650515]
[1725543950230,1.35119723,57070.0,57069.0,0.52650515]
[1725543950481,1.35119723,57070.0,57062.0,0.00162]
[1725543950482,0.525733,57063.0,57062.0,0.00162]
[1725543950948,1.28946757,57063.0,57062.0,0.00162]
[1725543951170,0.75038457,57063.0,57062.0,0.00162]
[1725543951393,0.52616557,57063.0,57062.0,0.00162]
[1725543951614,0.17567657,57063.0,57062.0,0.00162]
[1725543951842,0.52616557,57063.0,57062.0,0.00162]
[1725543952093,1.31738657,57063.0,57062.0,0.00162]
[1725543952325,1.19512557,57063.0,57062.0,0.00162]
[1725543952552,2.28150357,57063.0,57062.0,0.00162]
[1725543953018,1.93101457,57063.0,57062.0,0.00162]
[1725543953239,2.28150357,57063.0,57062.0,0.00162]
[1725543953469,2.28350357,57063.0,57062.0,0.00162]
[1725543953686,2.28150357,57063.0,57062.0,0.00162]
[1725543953908,2.28150357,57063.0,57061.0,2.2e-07]
[1725543953909,1.589227,57062.0,57061.0,2.2e-07]
[1725543954131,6.624546,57062.0,57061.0,2.2e-07]